[Event "*** Titled Tuesday Blitz"]
[Site "Chess.com"]
[Date "2020.03.03"]
[Round "2"]
[White "Babas"]
[Black "VitaliyBernadskiy"]
[Result "0-1"]
[WhiteElo "2382"]
[BlackElo "2784"]
[TimeControl "180+1"]
[EndTime "9:19:57 PST"]
[Termination "VitaliyBernadskiy won by checkmate"]

1. d4 {[%clk 0:02:57.1]} 1... Nf6 {[%clk 0:02:59.6]} 2. Nf3 {[%clk 0:02:57.5]}
2... g6 {[%clk 0:03:00.5]} 3. Nc3 {[%clk 0:02:55]} 3... Bg7 {[%clk 0:03:01]} 4.
e4 {[%clk 0:02:55]} 4... O-O {[%clk 0:03:01.9]} 5. h3 {[%clk 0:02:54.7]} 5... d5
{[%clk 0:03:01.7]} 6. e5 {[%clk 0:02:47.1]} 6... Ne4 {[%clk 0:03:01.7]} 7. Bd3
{[%clk 0:02:45.2]} 7... Nxc3 {[%clk 0:03:01.2]} 8. bxc3 {[%clk 0:02:46.1]} 8...
c5 {[%clk 0:03:01.8]} 9. O-O {[%clk 0:02:40.6]} 9... Nc6 {[%clk 0:03:02.3]} 10.
Re1 {[%clk 0:02:35.6]} 10... h6 {[%clk 0:02:56.4]} 11. Bf4 {[%clk 0:02:33.3]}
11... Be6 {[%clk 0:02:56.1]} 12. Qd2 {[%clk 0:02:28.2]} 12... Kh7 {[%clk
0:02:56]} 13. Rab1 {[%clk 0:02:11.5]} 13... b6 {[%clk 0:02:51.7]} 14. Bb5 {[%clk
0:02:05.3]} 14... Rc8 {[%clk 0:02:50.8]} 15. Ba6 {[%clk 0:02:03.1]} 15... Rc7
{[%clk 0:02:50.7]} 16. Bf1 {[%clk 0:01:57]} 16... cxd4 {[%clk 0:02:48.7]} 17.
cxd4 {[%clk 0:01:52.1]} 17... Na5 {[%clk 0:02:48.7]} 18. Bd3 {[%clk 0:01:49.4]}
18... Nc4 {[%clk 0:02:47.8]} 19. Qe2 {[%clk 0:01:44.1]} 19... Qd7 {[%clk
0:02:47.7]} 20. Nh4 {[%clk 0:01:40.5]} 20... Rfc8 {[%clk 0:02:45.7]} 21. Qh5
{[%clk 0:01:35.7]} 21... Qe8 {[%clk 0:02:42.3]} 22. Nf3 {[%clk 0:01:30.6]} 22...
Kg8 {[%clk 0:02:38.7]} 23. Qh4 {[%clk 0:01:29.3]} 23... Qf8 {[%clk 0:02:38.8]}
24. Qg3 {[%clk 0:01:17.6]} 24... Na3 {[%clk 0:02:36]} 25. Rb3 {[%clk 0:01:08.3]}
25... Nc4 {[%clk 0:02:35.8]} 26. h4 {[%clk 0:01:06.9]} 26... Kh8 {[%clk
0:02:25.4]} 27. h5 {[%clk 0:01:04.2]} 27... g5 {[%clk 0:02:25.3]} 28. Bc1 {[%clk
0:01:03.6]} 28... Qg8 {[%clk 0:02:16.5]} 29. Nh2 {[%clk 0:01:02.8]} 29... Na5
{[%clk 0:02:07]} 30. Ra3 {[%clk 0:01:01.9]} 30... Nc6 {[%clk 0:02:07.9]} 31. Be3
{[%clk 0:00:59.1]} 31... Nb4 {[%clk 0:02:06.8]} 32. f4 {[%clk 0:00:57.5]} 32...
gxf4 {[%clk 0:02:02.7]} 33. Bxf4 {[%clk 0:00:53.6]} 33... Nxc2 {[%clk
0:01:59.4]} 34. Bxc2 {[%clk 0:00:52.3]} 34... Rxc2 {[%clk 0:02:00.3]} 35. Rxa7
{[%clk 0:00:52.1]} 35... R8c3 {[%clk 0:01:56.8]} 36. Re3 {[%clk 0:00:50.6]}
36... Rc1+ {[%clk 0:01:55]} 37. Nf1 {[%clk 0:00:50.3]} 37... Rc7 {[%clk
0:01:36.1]} 38. Rxc7 {[%clk 0:00:37.8]} 38... Rxc7 {[%clk 0:01:37]} 39. Qf2
{[%clk 0:00:34.2]} 39... Qh7 {[%clk 0:01:33.4]} 40. Rg3 {[%clk 0:00:33.3]} 40...
Rc2 {[%clk 0:01:22.4]} 41. Qe3 {[%clk 0:00:33.4]} 41... Bf5 {[%clk 0:01:17.7]}
42. Qa3 {[%clk 0:00:23.8]} 42... Rc7 {[%clk 0:01:11.4]} 43. Ne3 {[%clk
0:00:23.4]} 43... Be6 {[%clk 0:01:08.3]} 44. Qa4 {[%clk 0:00:20]} 44... Rc8
{[%clk 0:01:00.5]} 45. Qa7 {[%clk 0:00:18.8]} 45... Qe4 {[%clk 0:00:59.5]} 46.
Rf3 {[%clk 0:00:10.5]} 46... Re8 {[%clk 0:00:55]} 47. Qxb6 {[%clk 0:00:10.2]}
47... Rg8 {[%clk 0:00:50.6]} 48. Qb2 {[%clk 0:00:10.4]} 48... Bf8 {[%clk
0:00:47.8]} 49. Qf2 {[%clk 0:00:10.2]} 49... Qxd4 {[%clk 0:00:46.6]} 50. Rg3
{[%clk 0:00:09.9]} 50... Rxg3 {[%clk 0:00:42.4]} 51. Qxg3 {[%clk 0:00:10.8]}
51... Qa1+ {[%clk 0:00:38.2]} 52. Kh2 {[%clk 0:00:11]} 52... Qxa2 {[%clk
0:00:37.2]} 53. Ng4 {[%clk 0:00:10.3]} 53... Qe2 {[%clk 0:00:36.7]} 54. Kh3
{[%clk 0:00:08.4]} 54... d4 {[%clk 0:00:36.1]} 55. Kh4 {[%clk 0:00:08.5]} 55...
Qf1 {[%clk 0:00:14.2]} 56. Nxh6 {[%clk 0:00:08.2]} 56... Qh1+ {[%clk 0:00:14.1]}
57. Kg5 {[%clk 0:00:08.5]} 57... Bg7 {[%clk 0:00:08.2]} 58. Qa3 {[%clk
0:00:04.5]} 58... Qxg2+ {[%clk 0:00:05]} 59. Bg3 {[%clk 0:00:03.8]} 59... Qd2+
{[%clk 0:00:02.8]} 60. Kh4 {[%clk 0:00:04.2]} 60... Qxh6 {[%clk 0:00:02.4]} 61.
Qa8+ {[%clk 0:00:04.7]} 61... Bf8 {[%clk 0:00:02.8]} 62. Qe4 {[%clk 0:00:05.6]}
62... Qg7 {[%clk 0:00:03.1]} 63. Bf4 {[%clk 0:00:05.9]} 63... Qg4# {[%clk
0:00:03.2]} 0-1

[Event "*** Titled Tuesday Blitz"]
[Site "Chess.com"]
[Date "2020.03.03"]
[Round "2"]
[White "Ali_rastbod"]
[Black "platy3"]
[Result "1-0"]
[WhiteElo "2643"]
[BlackElo "2861"]
[TimeControl "180+1"]
[EndTime "9:20:02 PST"]
[Termination "Ali_rastbod won by resignation"]

1. Nf3 {[%clk 0:03:00.9]} 1... Nf6 {[%clk 0:03:00.1]} 2. c4 {[%clk 0:03:00.3]}
2... e6 {[%clk 0:03:00.3]} 3. g3 {[%clk 0:02:58.2]} 3... d5 {[%clk 0:03:00.5]}
4. Bg2 {[%clk 0:02:58.4]} 4... Be7 {[%clk 0:03:01]} 5. O-O {[%clk 0:02:56.3]}
5... O-O {[%clk 0:03:01.6]} 6. d4 {[%clk 0:02:56.9]} 6... dxc4 {[%clk
0:03:00.6]} 7. Qc2 {[%clk 0:02:57.4]} 7... a6 {[%clk 0:03:00]} 8. a4 {[%clk
0:02:56.1]} 8... Bd7 {[%clk 0:03:00.5]} 9. Rd1 {[%clk 0:02:55]} 9... Bc6 {[%clk
0:03:00.5]} 10. Nc3 {[%clk 0:02:55.3]} 10... Bxf3 {[%clk 0:02:56.5]} 11. Bxf3
{[%clk 0:02:53.7]} 11... Nc6 {[%clk 0:02:57]} 12. Bxc6 {[%clk 0:02:54.1]} 12...
bxc6 {[%clk 0:02:56.9]} 13. a5 {[%clk 0:02:55]} 13... Qe8 {[%clk 0:02:43.4]} 14.
Ra4 {[%clk 0:02:36.2]} 14... c5 {[%clk 0:02:32.9]} 15. Rxc4 {[%clk 0:02:34.5]}
15... cxd4 {[%clk 0:02:30.5]} 16. Rdxd4 {[%clk 0:02:34.9]} 16... c5 {[%clk
0:02:30.7]} 17. Rd3 {[%clk 0:02:19.9]} 17... Rb8 {[%clk 0:02:28.3]} 18. Be3
{[%clk 0:02:17.1]} 18... Rb4 {[%clk 0:02:24.2]} 19. Na4 {[%clk 0:02:02]} 19...
Qb5 {[%clk 0:02:18.1]} 20. b3 {[%clk 0:01:34.7]} 20... Rxc4 {[%clk 0:02:17.3]}
21. Qxc4 {[%clk 0:01:32.5]} 21... Qxa5 {[%clk 0:02:17.6]} 22. Nxc5 {[%clk
0:01:18.3]} 22... Qe1+ {[%clk 0:02:15.3]} 23. Kg2 {[%clk 0:01:17.8]} 23... Qxe2
{[%clk 0:02:15.4]} 24. Nxa6 {[%clk 0:01:14.3]} 24... Nd5 {[%clk 0:02:07.5]} 25.
Bc5 {[%clk 0:01:02.3]} 25... Rc8 {[%clk 0:01:54.2]} 26. Rxd5 {[%clk 0:00:58.1]}
26... Qxc4 {[%clk 0:01:51.8]} 27. bxc4 {[%clk 0:00:59]} 27... exd5 {[%clk
0:01:51.5]} 28. Bxe7 {[%clk 0:00:59.3]} 28... dxc4 {[%clk 0:01:52]} 29. Bg5
{[%clk 0:00:50.6]} 29... c3 {[%clk 0:01:44.9]} 30. Nb4 {[%clk 0:00:44.9]} 30...
Rb8 {[%clk 0:01:44.5]} 31. Nd3 {[%clk 0:00:42.3]} 31... Rb5 {[%clk 0:01:34.2]}
32. Be3 {[%clk 0:00:42.3]} 32... Rd5 {[%clk 0:01:28]} 33. Nc1 {[%clk 0:00:42]}
33... f5 {[%clk 0:01:25.9]} 34. Kf3 {[%clk 0:00:42.2]} 34... Kf7 {[%clk
0:01:25.3]} 35. Ke2 {[%clk 0:00:37.5]} 35... Kf6 {[%clk 0:01:24.2]} 36. Na2
{[%clk 0:00:35.6]} 36... c2 {[%clk 0:01:21.5]} 37. Nb4 {[%clk 0:00:35.1]} 37...
Rc5 {[%clk 0:01:19.7]} 38. Nd3 {[%clk 0:00:27.6]} 38... Rc8 {[%clk 0:01:19.8]}
39. Bc1 {[%clk 0:00:26.4]} 39... Ke6 {[%clk 0:01:15.3]} 40. Kd2 {[%clk
0:00:26.6]} 40... Kd5 {[%clk 0:01:14.9]} 41. f3 {[%clk 0:00:26.9]} 41... g5
{[%clk 0:01:07.7]} 42. Ne1 {[%clk 0:00:26.4]} 42... g4 {[%clk 0:01:04.7]} 43.
fxg4 {[%clk 0:00:23.4]} 43... fxg4 {[%clk 0:01:04.7]} 44. Kd3 {[%clk 0:00:20.9]}
44... Rf8 {[%clk 0:00:58.2]} 45. Nxc2 {[%clk 0:00:21.2]} 45... h5 {[%clk
0:00:53.9]} 46. Bf4 {[%clk 0:00:21.4]} 46... Ra8 {[%clk 0:00:50.8]} 47. Ne3+
{[%clk 0:00:21.5]} 47... Ke6 {[%clk 0:00:51.5]} 48. Ke4 {[%clk 0:00:18.4]} 48...
Ra4+ {[%clk 0:00:51.5]} 49. Kd3 {[%clk 0:00:17.8]} 49... Ra2 {[%clk 0:00:52.4]}
50. Bg5 {[%clk 0:00:14.7]} 50... Rxh2 {[%clk 0:00:52]} 51. Bh4 {[%clk
0:00:15.1]} 51... Ke5 {[%clk 0:00:50.5]} 52. Nc4+ {[%clk 0:00:14.8]} 52... Ke6
{[%clk 0:00:50.5]} 53. Nd2 {[%clk 0:00:10.1]} 53... Kd5 {[%clk 0:00:46.6]} 54.
Ke3 {[%clk 0:00:08.3]} 54... Rh1 {[%clk 0:00:46]} 55. Kd3 {[%clk 0:00:05.9]}
55... Ra1 {[%clk 0:00:45.3]} 56. Ne4 {[%clk 0:00:03.7]} 56... Ra3+ {[%clk
0:00:44.2]} 57. Nc3+ {[%clk 0:00:04.4]} 57... Ke5 {[%clk 0:00:44.5]} 58. Bg5
{[%clk 0:00:04.9]} 58... Kf5 {[%clk 0:00:43.8]} 59. Bh4 {[%clk 0:00:05.4]} 59...
Ra1 {[%clk 0:00:40.4]} 60. Kd4 {[%clk 0:00:05.8]} 60... Rh1 {[%clk 0:00:38.5]}
61. Bd8 {[%clk 0:00:04.2]} 61... Re1 {[%clk 0:00:33]} 62. Bh4 {[%clk 0:00:04.3]}
62... Re8 {[%clk 0:00:31.4]} 63. Kd3 {[%clk 0:00:03.5]} 63... Rd8+ {[%clk
0:00:29.8]} 64. Bxd8 {[%clk 0:00:03]} 64... Ke5 {[%clk 0:00:29.5]} 65. Bh4
{[%clk 0:00:03.9]} 65... Kf5 {[%clk 0:00:27.3]} 66. Ne2 {[%clk 0:00:04.8]} 66...
Ke5 {[%clk 0:00:27.6]} 67. Nf4 {[%clk 0:00:05.7]} 1-0

[Event "*** Titled Tuesday Blitz"]
[Site "Chess.com"]
[Date "2020.03.03"]
[Round "2"]
[White "Pultis"]
[Black "bilelou"]
[Result "0-1"]
[WhiteElo "2773"]
[BlackElo "2591"]
[TimeControl "180+1"]
[EndTime "9:20:04 PST"]
[Termination "bilelou won by resignation"]

1. d4 {[%clk 0:03:00.9]} 1... Nf6 {[%clk 0:02:59.7]} 2. c4 {[%clk 0:02:59]} 2...
e6 {[%clk 0:03:00.2]} 3. Nf3 {[%clk 0:02:57.6]} 3... d5 {[%clk 0:02:59.8]} 4.
Nc3 {[%clk 0:02:54.9]} 4... Bb4 {[%clk 0:03:00.2]} 5. Qa4+ {[%clk 0:02:48.8]}
5... Nc6 {[%clk 0:02:58.7]} 6. e3 {[%clk 0:02:44.5]} 6... O-O {[%clk 0:02:58.3]}
7. Qc2 {[%clk 0:02:44.2]} 7... dxc4 {[%clk 0:02:56.9]} 8. Bxc4 {[%clk
0:02:43.9]} 8... Bd6 {[%clk 0:02:57.8]} 9. a3 {[%clk 0:02:42.1]} 9... e5 {[%clk
0:02:56.8]} 10. d5 {[%clk 0:02:34.7]} 10... Ne7 {[%clk 0:02:56.3]} 11. e4 {[%clk
0:02:31]} 11... a6 {[%clk 0:02:56.3]} 12. O-O {[%clk 0:02:27.2]} 12... Ng6
{[%clk 0:02:56.8]} 13. h3 {[%clk 0:02:14.3]} 13... Nh5 {[%clk 0:02:55.3]} 14.
Ne2 {[%clk 0:02:01]} 14... h6 {[%clk 0:02:53.7]} 15. Re1 {[%clk 0:01:50.4]}
15... Qf6 {[%clk 0:02:52.3]} 16. Qc3 {[%clk 0:01:41.6]} 16... Nhf4 {[%clk
0:02:41.8]} 17. Ng3 {[%clk 0:01:26]} 17... Bd7 {[%clk 0:02:33.8]} 18. Bf1 {[%clk
0:01:20]} 18... Rac8 {[%clk 0:02:31.6]} 19. Nh2 {[%clk 0:00:37.6]} 19... c6
{[%clk 0:02:29]} 20. dxc6 {[%clk 0:00:37.4]} 20... Rxc6 {[%clk 0:02:26.2]} 21.
Qd2 {[%clk 0:00:30.7]} 21... Rd8 {[%clk 0:02:23.1]} 22. Qd1 {[%clk 0:00:23.1]}
22... Bc5 {[%clk 0:02:22.2]} 23. Be3 {[%clk 0:00:17.7]} 23... Bxh3 {[%clk
0:02:17.8]} 24. Qb3 {[%clk 0:00:16.9]} 24... Bc8 {[%clk 0:02:14.2]} 25. Bxc5
{[%clk 0:00:16.1]} 25... Rxc5 {[%clk 0:02:15.1]} 26. Rad1 {[%clk 0:00:12.6]}
26... Rxd1 {[%clk 0:02:10.8]} 27. Rxd1 {[%clk 0:00:13.5]} 27... Ne6 {[%clk
0:02:10.8]} 28. Nf3 {[%clk 0:00:13.1]} 28... Ne7 {[%clk 0:02:02.4]} 29. Qb6
{[%clk 0:00:07.6]} 29... Rc6 {[%clk 0:01:59.9]} 30. Qa5 {[%clk 0:00:07.7]} 30...
Ng6 {[%clk 0:01:46.8]} 31. Nf5 {[%clk 0:00:07.5]} 31... Kh7 {[%clk 0:01:47.3]}
32. Qb4 {[%clk 0:00:06.9]} 32... Ng5 {[%clk 0:01:43.5]} 33. Nh2 {[%clk
0:00:04.8]} 33... Rb6 {[%clk 0:01:37]} 34. Qa4 {[%clk 0:00:03.1]} 34... Bxf5
{[%clk 0:01:31.4]} 35. exf5 {[%clk 0:00:03.2]} 35... Qxf5 {[%clk 0:01:32.3]} 36.
Bd3 {[%clk 0:00:03.6]} 36... e4 {[%clk 0:01:32.2]} 37. Bc2 {[%clk 0:00:03.9]}
37... Rxb2 {[%clk 0:01:30.2]} 38. Nf1 {[%clk 0:00:04]} 38... Qb5 {[%clk
0:01:11.5]} 39. Qxb5 {[%clk 0:00:03]} 39... axb5 {[%clk 0:01:10.8]} 40. Ne3
{[%clk 0:00:03.9]} 40... Nf4 {[%clk 0:01:09.3]} 41. Rb1 {[%clk 0:00:04.4]} 41...
Rxb1+ {[%clk 0:01:08.5]} 42. Bxb1 {[%clk 0:00:05.3]} 42... g6 {[%clk 0:01:08.2]}
43. Kf1 {[%clk 0:00:05.3]} 43... f5 {[%clk 0:01:07.8]} 44. Nc2 {[%clk
0:00:05.6]} 44... Nge6 {[%clk 0:01:05.3]} 45. Ba2 {[%clk 0:00:06.1]} 45... Nc7
{[%clk 0:01:04.7]} 46. Nd4 {[%clk 0:00:06.3]} 46... Nd3 {[%clk 0:01:03.7]} 47.
f3 {[%clk 0:00:04.9]} 47... e3 {[%clk 0:01:02.7]} 48. Bb1 {[%clk 0:00:04.5]}
48... Ne5 {[%clk 0:01:00.1]} 49. Ke2 {[%clk 0:00:04]} 49... Nc4 {[%clk
0:00:55.3]} 50. Bd3 {[%clk 0:00:02.8]} 50... Nxa3 {[%clk 0:00:54.1]} 51. Kxe3
{[%clk 0:00:03.7]} 51... Nd5+ {[%clk 0:00:54.5]} 52. Kd2 {[%clk 0:00:04]} 52...
Nc4+ {[%clk 0:00:54.6]} 53. Ke1 {[%clk 0:00:03.8]} 53... Nce3 {[%clk 0:00:53.6]}
54. Nxb5 {[%clk 0:00:03.9]} 54... Nxg2+ {[%clk 0:00:52.8]} 55. Kf2 {[%clk
0:00:04.8]} 55... Ngf4 {[%clk 0:00:53.1]} 56. Bc4 {[%clk 0:00:05.7]} 56... Nb4
{[%clk 0:00:48.8]} 57. Nd6 {[%clk 0:00:05.3]} 57... b6 {[%clk 0:00:46.3]} 58.
Ne8 {[%clk 0:00:04.6]} 58... Nc6 {[%clk 0:00:45.1]} 59. Ke3 {[%clk 0:00:04.5]}
59... Nh5 {[%clk 0:00:44]} 60. Nd6 {[%clk 0:00:04]} 60... Ne5 {[%clk 0:00:43.7]}
61. Bf1 {[%clk 0:00:04.5]} 61... Nf6 {[%clk 0:00:42]} 62. Kd4 {[%clk 0:00:04]}
62... Nxf3+ {[%clk 0:00:41.8]} 63. Ke3 {[%clk 0:00:04.1]} 63... Ne5 {[%clk
0:00:41.8]} 64. Kd4 {[%clk 0:00:04.6]} 64... Ned7 {[%clk 0:00:41.3]} 65. Bb5
{[%clk 0:00:04.8]} 65... h5 {[%clk 0:00:41.5]} 66. Nc4 {[%clk 0:00:04.5]} 66...
h4 {[%clk 0:00:41.3]} 67. Ke3 {[%clk 0:00:05.1]} 67... Kh6 {[%clk 0:00:39.8]}
68. Kf4 {[%clk 0:00:04.7]} 68... Nh5+ {[%clk 0:00:38]} 69. Kf3 {[%clk
0:00:04.8]} 69... Ndf6 {[%clk 0:00:36.3]} 70. Nxb6 {[%clk 0:00:04.9]} 70... g5
{[%clk 0:00:37.2]} 71. Bd3 {[%clk 0:00:03.9]} 71... g4+ {[%clk 0:00:38.1]} 72.
Kf2 {[%clk 0:00:04.1]} 72... h3 {[%clk 0:00:36.8]} 73. Bxf5 {[%clk 0:00:03.5]}
73... Kg5 {[%clk 0:00:36.1]} 74. Bxg4 {[%clk 0:00:02.6]} 74... Nxg4+ {[%clk
0:00:35.8]} 75. Kf3 {[%clk 0:00:03]} 75... h2 {[%clk 0:00:31.7]} 76. Kg2 {[%clk
0:00:03.4]} 76... Ng3 {[%clk 0:00:30.7]} 77. Kxg3 {[%clk 0:00:03.5]} 77... h1=Q
{[%clk 0:00:30.5]} 78. Nc4 {[%clk 0:00:03.7]} 78... Qh2+ {[%clk 0:00:30.7]} 0-1

[Event "*** Titled Tuesday Blitz"]
[Site "Chess.com"]
[Date "2020.03.03"]
[Round "2"]
[White "Mikhail_Golubev"]
[Black "Keures"]
[Result "1/2-1/2"]
[WhiteElo "2534"]
[BlackElo "2284"]
[TimeControl "180+1"]
[EndTime "9:20:12 PST"]
[Termination "Game drawn by repetition"]

1. e4 {[%clk 0:03:00.9]} 1... e6 {[%clk 0:02:59]} 2. d4 {[%clk 0:02:59.8]} 2...
d5 {[%clk 0:02:59]} 3. Nc3 {[%clk 0:02:59.3]} 3... Nf6 {[%clk 0:02:58.2]} 4. Bg5
{[%clk 0:02:56.2]} 4... Be7 {[%clk 0:02:57.8]} 5. e5 {[%clk 0:02:55.4]} 5... Ne4
{[%clk 0:02:57.5]} 6. Bxe7 {[%clk 0:02:51.8]} 6... Nxc3 {[%clk 0:02:57.6]} 7.
Bxd8 {[%clk 0:02:48.4]} 7... Nxd1 {[%clk 0:02:57.6]} 8. Bxc7 {[%clk 0:02:28.7]}
8... Nxb2 {[%clk 0:02:56.4]} 9. Bd6 {[%clk 0:02:27.2]} 9... b6 {[%clk
0:02:48.4]} 10. Rb1 {[%clk 0:02:05]} 10... Nc4 {[%clk 0:02:47.7]} 11. Bxc4
{[%clk 0:01:56.9]} 11... dxc4 {[%clk 0:02:48.6]} 12. Ne2 {[%clk 0:01:50]} 12...
Nc6 {[%clk 0:02:43.3]} 13. f3 {[%clk 0:01:42.8]} 13... Ba6 {[%clk 0:02:41.1]}
14. Kf2 {[%clk 0:01:42.2]} 14... Ne7 {[%clk 0:02:36.9]} 15. Nc3 {[%clk
0:01:36.3]} 15... Nf5 {[%clk 0:02:31]} 16. Ne4 {[%clk 0:01:14.2]} 16... Bb7
{[%clk 0:02:26.4]} 17. Rhd1 {[%clk 0:01:07.3]} 17... Rd8 {[%clk 0:02:25.7]} 18.
Bc7 {[%clk 0:01:00.6]} 18... Rd5 {[%clk 0:02:25]} 19. Nd6+ {[%clk 0:00:53.5]}
19... Kd7 {[%clk 0:02:24.2]} 20. Nxf5 {[%clk 0:00:50.6]} 20... exf5 {[%clk
0:02:25.1]} 21. Bd6 {[%clk 0:00:49.4]} 21... c3 {[%clk 0:02:25.2]} 22. Rb3
{[%clk 0:00:45.3]} 22... Rc8 {[%clk 0:02:23.7]} 23. Rd3 {[%clk 0:00:41.8]} 23...
Ba6 {[%clk 0:02:04.7]} 24. Rdxc3 {[%clk 0:00:41.7]} 24... Rxc3 {[%clk 0:02:02]}
25. Rxc3 {[%clk 0:00:40.8]} 25... Rxd4 {[%clk 0:02:02.9]} 26. Rc7+ {[%clk
0:00:37.3]} 26... Ke6 {[%clk 0:01:36.6]} 27. Rxa7 {[%clk 0:00:35.1]} 27... Bc8
{[%clk 0:01:36.6]} 28. Re7+ {[%clk 0:00:33.7]} 28... Kd5 {[%clk 0:01:36.9]} 29.
Rxf7 {[%clk 0:00:31.2]} 29... g5 {[%clk 0:01:37.1]} 30. Rc7 {[%clk 0:00:26.8]}
30... Be6 {[%clk 0:01:32]} 31. Ke2 {[%clk 0:00:19.1]} 31... Rc4 {[%clk
0:01:32.3]} 32. Rxc4 {[%clk 0:00:18.3]} 32... Kxc4 {[%clk 0:01:33.2]} 33. Kd2
{[%clk 0:00:17.6]} 33... Kd4 {[%clk 0:01:26.5]} 34. a3 {[%clk 0:00:17.3]} 34...
Kc4 {[%clk 0:01:26.2]} 35. Be7 {[%clk 0:00:17]} 35... h6 {[%clk 0:01:12.5]} 36.
Bf8 {[%clk 0:00:16.3]} 36... h5 {[%clk 0:01:12.6]} 37. Be7 {[%clk 0:00:16.3]}
37... Kd5 {[%clk 0:01:11.9]} 38. Bxg5 {[%clk 0:00:15.4]} 38... Kxe5 {[%clk
0:01:12.8]} 39. Ke3 {[%clk 0:00:15.6]} 39... Bd5 {[%clk 0:01:10]} 40. Bf4+
{[%clk 0:00:15]} 40... Ke6 {[%clk 0:01:07.7]} 41. c3 {[%clk 0:00:15.2]} 41...
Bc4 {[%clk 0:01:04.7]} 42. Kd4 {[%clk 0:00:15.2]} 42... Bf1 {[%clk 0:01:03.3]}
43. Bc7 {[%clk 0:00:14]} 43... Bxg2 {[%clk 0:00:56.7]} 44. Bxb6 {[%clk 0:00:14]}
44... Bxf3 {[%clk 0:00:51.2]} 45. Ke3 {[%clk 0:00:14.1]} 45... Bc6 {[%clk
0:00:44.5]} 46. Kf4 {[%clk 0:00:14.1]} 46... h4 {[%clk 0:00:41.4]} 47. Bf2
{[%clk 0:00:13.7]} 47... h3 {[%clk 0:00:38.8]} 48. Kg3 {[%clk 0:00:13.8]} 48...
Bg2 {[%clk 0:00:18.5]} 49. a4 {[%clk 0:00:11.6]} 49... Kd6 {[%clk 0:00:17.2]}
50. a5 {[%clk 0:00:10.5]} 50... Kc6 {[%clk 0:00:17.6]} 51. Bb6 {[%clk
0:00:10.4]} 51... Kb7 {[%clk 0:00:17.4]} 52. Kf2 {[%clk 0:00:10.6]} 52... Kc6
{[%clk 0:00:17.2]} 53. Ke3 {[%clk 0:00:10.8]} 53... Kb7 {[%clk 0:00:17.5]} 54.
Kf4 {[%clk 0:00:11.1]} 54... Be4 {[%clk 0:00:17]} 55. Kg5 {[%clk 0:00:10.9]}
55... Kc6 {[%clk 0:00:16.8]} 56. Kh4 {[%clk 0:00:10.5]} 56... Bg2 {[%clk
0:00:16.4]} 57. Kg5 {[%clk 0:00:10]} 57... Be4 {[%clk 0:00:15.9]} 58. c4 {[%clk
0:00:10.4]} 58... Kb7 {[%clk 0:00:15.7]} 59. Be3 {[%clk 0:00:10.4]} 59... Kb8
{[%clk 0:00:13.2]} 60. Bd2 {[%clk 0:00:10.7]} 60... Kb7 {[%clk 0:00:13.5]} 61.
c5 {[%clk 0:00:10.7]} 61... Kc6 {[%clk 0:00:13.7]} 62. Be3 {[%clk 0:00:10.5]}
62... Kc7 {[%clk 0:00:13.8]} 63. Bd2 {[%clk 0:00:10]} 63... Kc6 {[%clk
0:00:14.3]} 64. Bb4 {[%clk 0:00:09.7]} 64... Kb5 {[%clk 0:00:14.4]} 65. Bd2
{[%clk 0:00:08.1]} 65... Kxc5 {[%clk 0:00:13.6]} 66. Kh4 {[%clk 0:00:07.5]}
66... Bg2 {[%clk 0:00:13.2]} 67. Kg5 {[%clk 0:00:07.1]} 67... Be4 {[%clk
0:00:12.6]} 68. Kh4 {[%clk 0:00:06.2]} 68... Bg2 {[%clk 0:00:12.7]} 69. Kg5
{[%clk 0:00:06.3]} 69... Be4 {[%clk 0:00:12.9]} 1/2-1/2